bitfinex/quotes_BTCUSD_20241110
["timestamp","ask_amount","ask_price","bid_price","bid_amount"]
[1731260022170,0.11570581,79889.0,79872.0,0.1]
[1731260022391,0.125176,79888.0,79872.0,0.1]
[1731260022522,0.30347103,79889.0,79872.0,0.1]
[1731260022523,0.125177,79887.0,79872.0,0.1]
[1731260022725,0.30347103,79889.0,79872.0,0.1]
[1731260022932,0.42864503,79889.0,79872.0,0.1]
[1731260023140,0.125177,79887.0,79872.0,0.1]
[1731260023686,0.102177,79887.0,79872.0,0.1]
[1731260024116,0.30347103,79889.0,79872.0,0.1]
[1731260024117,0.125175,79888.0,79872.0,0.1]
[1731260024266,0.11570581,79881.0,79872.0,0.1]
[1731260024647,0.005,79893.0,79872.0,0.1]
[1731260024648,0.18776522,79899.0,79875.0,0.0764]
[1731260024855,0.18776522,79888.0,79877.0,0.0764]
[1731260025075,0.18776522,79888.0,79879.0,0.0764]
[1731260025279,0.18776522,79888.0,79881.0,0.0764]
[1731260025435,0.18776522,79888.0,79881.0,0.20234221]
[1731260026315,0.11570581,79895.0,79881.0,0.20234221]
[1731260026559,0.18776522,79891.0,79881.0,0.20234221]
[1731260027155,0.11570581,79889.0,79881.0,0.0764]
[1731260027917,0.05187037,79891.0,79881.0,0.0764]
[1731260028117,0.11570581,79895.0,79881.0,0.0764]
[1731260028587,0.16589475,79895.0,79881.0,0.0764]
[1731260030418,0.14289475,79895.0,79881.0,0.0764]
[1731260035970,0.14289475,79895.0,79872.0,0.18944522]
[1731260035971,0.05018894,79895.0,79884.0,0.0812]
[1731260036179,0.05018894,79895.0,79883.0,0.0477]
[1731260036180,0.18776522,79898.0,79886.0,0.0812]
[1731260036386,0.18776522,79898.0,79887.0,0.12594221]
[1731260036596,0.30347103,79908.0,79888.0,0.0812]
[1731260036790,0.18776522,79900.0,79891.0,0.0812]
[1731260037324,0.35419665,79908.0,79891.0,0.0812]
[1731260037853,0.35419665,79908.0,79890.0,0.0477]
[1731260037854,0.35419665,79908.0,79893.0,0.0812]
[1731260038063,0.35419665,79908.0,79894.0,0.12594221]
[1731260038271,0.35419665,79908.0,79893.0,0.0812]
[1731260038272,0.11570581,79902.0,79893.0,0.0812]
[1731260038686,0.11570581,79896.0,79893.0,0.0812]
[1731260039331,0.125165,79894.0,79883.0,0.0812]
[1731260039534,0.18776522,79900.0,79883.0,0.0812]
[1731260039535,0.11570581,79886.0,79883.0,0.0812]
[1731260042002,0.11570581,79886.0,79883.0,2.0812]
[1731260042162,0.09270581,79886.0,79883.0,2.0762]
[1731260044689,0.14457152,79886.0,79883.0,2.0762]
[1731260045453,0.26974952,79886.0,79883.0,2.0]
[1731260045579,0.125181,79884.0,79883.0,2.0]
[1731260046565,0.102181,79884.0,79883.0,2.0]
[1731260048224,0.23312321,79884.0,79883.0,2.0]
[1731260048373,0.41182321,79884.0,79883.0,1.98659567]
[1731260048555,0.41182321,79884.0,79883.0,1.97783488]
[1731260049385,0.52752902,79884.0,79883.0,1.49101878]
[1731260049598,0.41182321,79884.0,79883.0,1.49101878]
[1731260050033,0.41182321,79884.0,79883.0,1.49269878]
[1731260050461,0.41182321,79884.0,79883.0,1.47561367]
[1731260050639,0.52752902,79884.0,79883.0,1.47561367]
[1731260050877,0.60161315,79884.0,79883.0,1.47293877]
[1731260051109,0.48590734,79884.0,79883.0,1.47293877]
[1731260052276,0.48790734,79884.0,79883.0,1.47293877]
[1731260052482,0.48590734,79884.0,79883.0,1.47293877]
[1731260053038,0.48590734,79884.0,79883.0,1.46759491]
[1731260054069,0.48590734,79884.0,79883.0,0.66873586]
[1731260054070,0.60161315,79884.0,79883.0,0.66873586]
[1731260054344,0.60161315,79884.0,79883.0,0.63288586]
[1731260054546,0.68301315,79884.0,79883.0,0.63288586]
[1731260054797,0.68501315,79884.0,79883.0,0.63288586]
[1731260055011,0.68716916,79884.0,79883.0,0.63288586]
[1731260055395,0.81311137,79884.0,79883.0,0.56979963]
[1731260055593,0.69740556,79884.0,79883.0,0.56979963]
[1731260055796,0.56946335,79884.0,79883.0,0.56979963]
[1731260056010,0.56730734,79884.0,79883.0,0.56979963]
[1731260056833,0.48590734,79884.0,79883.0,0.56979963]
[1731260057040,0.240198,79873.0,79872.0,0.00168]
[1731260057255,0.41739155,79873.0,79872.0,0.00168]
[1731260057670,0.217198,79873.0,79872.0,0.00168]
[1731260059112,0.2668839,79873.0,79872.0,0.00168]
[1731260060170,0.34352632,79873.0,79872.0,0.00168]
[1731260060601,0.46946853,79873.0,79872.0,0.00168]
[1731260060803,0.44646853,79873.0,79872.0,0.00168]
[1731260061748,0.46946853,79873.0,79872.0,0.00168]
[1731260065520,0.47146853,79873.0,79872.0,0.00168]
[1731260065692,0.55522526,79873.0,79872.0,0.00168]
[1731260066406,0.2502,79872.0,79871.0,0.568216]
[1731260066629,0.45517189,79872.0,79871.0,0.568216]
[1731260067928,0.45317189,79872.0,79871.0,0.568216]
[1731260068949,0.45317189,79872.0,79871.0,0.5559599]
[1731260069235,0.45517189,79872.0,79871.0,0.5559599]
[1731260069445,0.45317189,79872.0,79871.0,0.5559599]
[1731260070398,0.45517189,79872.0,79871.0,0.5559599]
[1731260070913,0.45517189,79872.0,79871.0,0.54683525]
[1731260071150,0.45517189,79872.0,79871.0,0.49427425]
[1731260071534,0.45517189,79872.0,79871.0,0.44103925]
[1731260071535,0.5708777,79872.0,79871.0,0.44103925]
[1731260071743,0.81718324,79872.0,79871.0,0.23674501]
[1731260071961,0.81718324,79872.0,79871.0,0.16101725]
[1731260072395,0.79418324,79872.0,79871.0,0.15601725]
[1731260073068,2.29418324,79872.0,79871.0,0.15601725]
[1731260074046,2.29418324,79872.0,79871.0,0.15013725]
[1731260074373,2.29418324,79872.0,79871.0,0.14462725]
[1731260074910,0.002,79861.0,79848.0,0.18776522]
[1731260075118,0.125236,79849.0,79848.0,0.18776522]
[1731260075318,0.20455906,79849.0,79843.0,0.0823]
[1731260075549,0.125244,79844.0,79843.0,0.0823]
[1731260075770,0.125267,79829.0,79828.0,0.001678]
[1731260076205,0.125267,79829.0,79828.0,0.083978]
[1731260076448,0.32982606,79829.0,79828.0,0.083978]
[1731260076647,0.32982606,79829.0,79828.0,0.079978]
[1731260077099,0.32982606,79829.0,79817.0,0.0493]
[1731260077100,0.125285,79818.0,79817.0,0.0493]
[1731260077318,0.125299,79809.0,79807.0,0.04792126]
[1731260077742,0.12594221,79818.0,79808.0,0.005]
[1731260077951,0.250521,79834.0,79809.0,0.01]
[1731260078162,0.18776522,79823.0,79813.0,0.005]
[1731260078362,0.18776522,79823.0,79813.0,0.125292]
[1731260078587,0.12528,79821.0,79809.0,0.130298]
[1731260078803,0.125286,79817.0,79809.0,0.005]
[1731260079026,0.250563,79820.0,79810.0,0.125296]
[1731260079244,0.125289,79816.0,79809.0,0.005]
[1731260079669,0.05068328,79822.0,79818.0,0.0823]
[1731260079889,0.350534,79830.0,79820.0,0.125281]
[1731260079890,0.18437645,79821.0,79820.0,0.125281]
[1731260080088,0.125269,79828.0,79820.0,0.125281]
[1731260080321,0.05004288,79823.0,79818.0,0.0823]
[1731260080613,0.36621481,79838.0,79809.0,0.005]
[1731260080614,0.31303322,79829.0,79820.0,0.0823]
[1731260080813,0.18776522,79829.0,79820.0,0.0823]
[1731260080958,0.18776522,79829.0,79819.0,0.0493]
[1731260081178,0.18776522,79829.0,79827.0,0.0823]
[1731260081579,0.1,79830.0,79827.0,0.0823]
[1731260082032,0.125268,79829.0,79827.0,0.0823]
[1731260082236,0.125269,79828.0,79827.0,0.0823]
[1731260082554,0.1152943,79828.0,79827.0,0.0823]
[1731260083495,0.05056676,79830.0,79827.0,0.0823]
[1731260083706,0.125265,79831.0,79827.0,0.0823]
[1731260084065,0.1,79830.0,79827.0,0.0823]
[1731260085193,0.1,79833.0,79827.0,0.0823]
[1731260085430,0.125267,79830.0,79827.0,0.08398]
[1731260085847,0.22594221,79833.0,79827.0,0.08398]
[1731260086049,0.125268,79829.0,79827.0,0.08398]
[1731260086696,0.125269,79828.0,79827.0,0.08398]
[1731260087334,0.125267,79829.0,79827.0,0.08398]
[1731260087559,0.250526,79832.0,79827.0,0.08398]
[1731260087785,0.102269,79828.0,79827.0,0.08398]
[1731260088426,0.125269,79828.0,79827.0,0.08398]
[1731260089185,0.1,79831.0,79827.0,0.08398]
[1731260089397,0.125269,79828.0,79827.0,0.08398]
[1731260089612,0.1248151,79828.0,79827.0,0.08398]
[1731260089976,0.225265,79831.0,79827.0,0.08398]
[1731260090209,0.125252,79839.0,79833.0,0.12526]
[1731260090413,0.00187932,79840.0,79833.0,0.12526]
[1731260090414,0.18964454,79840.0,79834.0,0.0783]
[1731260090611,0.31558675,79840.0,79834.0,0.0783]
[1731260090841,0.00187932,79840.0,79839.0,0.125252]
[1731260091045,0.00187932,79840.0,79839.0,0.203552]
[1731260092543,0.00187932,79840.0,79839.0,0.53140002]
[1731260092787,0.00187932,79840.0,79839.0,0.64270082]
[1731260093156,0.00187932,79840.0,79839.0,0.41569421]
[1731260095806,0.00187932,79840.0,79839.0,0.53140002]
[1731260097021,0.18776522,79846.0,79845.0,0.130242]
[1731260097221,0.18776522,79846.0,79845.0,0.208542]
[1731260097368,0.16664454,79854.0,79853.0,0.12523]
[1731260097775,0.051962,79858.0,79848.0,0.005]
[1731260098123,0.125215,79863.0,79857.0,0.125223]
[1731260098344,0.250427,79864.0,79855.0,0.0783]
[1731260098555,0.250427,79864.0,79855.0,0.203526]
[1731260098702,0.12522,79860.0,79855.0,0.0783]
[1731260099132,0.12522,79859.0,79855.0,0.0783]
[1731260099475,0.250427,79864.0,79855.0,0.0783]
[1731260099476,0.125222,79858.0,79855.0,0.0783]
[1731260099702,0.125225,79856.0,79855.0,0.0783]
[1731260099904,0.125223,79857.0,79855.0,0.0783]
[1731260100413,0.125224,79857.0,79855.0,0.0783]
[1731260100834,0.125222,79858.0,79855.0,0.0783]
[1731260101252,0.125223,79857.0,79855.0,0.0783]
[1731260101526,0.125225,79856.0,79855.0,0.0783]
[1731260101721,0.250441,79859.0,79855.0,0.0783]
[1731260101944,0.125222,79858.0,79855.0,0.0783]
[1731260102153,0.102222,79858.0,79855.0,0.0783]
[1731260102327,0.125221,79859.0,79855.0,0.0783]
[1731260102586,0.0513271,79864.0,79863.0,0.125214]
[1731260102820,0.0513271,79864.0,79855.0,0.0833]
[1731260102821,0.0513271,79864.0,79861.0,0.125216]
[1731260103085,0.125207,79868.0,79860.0,0.125218]
[1731260103302,0.18776522,79870.0,79857.0,0.125223]
[1731260103504,0.125209,79867.0,79858.0,0.125221]
[1731260103715,0.12522,79860.0,79855.0,0.0833]
[1731260103962,0.125219,79860.0,79855.0,0.0833]
[1731260104165,0.12594221,79866.0,79855.0,0.0833]
[1731260104388,0.125216,79862.0,79855.0,0.208525]
[1731260105084,0.125214,79863.0,79857.0,0.125222]
[1731260105264,0.12594221,79866.0,79855.0,0.0833]
[1731260105265,0.12594221,79866.0,79855.0,0.208526]
[1731260105506,0.125216,79862.0,79856.0,0.125224]
[1731260105710,0.250425,79864.0,79856.0,0.125224]
[1731260105711,0.125217,79861.0,79856.0,0.125224]
[1731260106133,0.12594221,79866.0,79855.0,0.0833]
[1731260106134,0.18776522,79859.0,79855.0,0.208525]
[1731260106338,0.00187848,79865.0,79855.0,0.005]
[1731260106508,0.250431,79862.0,79855.0,0.005]
[1731260106737,0.125224,79857.0,79855.0,0.005]
[1731260106867,0.125225,79857.0,79856.0,0.005]
[1731260107071,0.125223,79857.0,79856.0,0.005]
[1731260107315,0.12594221,79857.0,79852.0,0.005]
[1731260107686,0.12594221,79857.0,79850.0,0.0786]
[1731260107687,0.125233,79851.0,79850.0,0.0836]
[1731260108291,0.12594221,79851.0,79844.0,0.0786]
[1731260108406,0.11570581,79863.0,79850.0,0.005]
[1731260108622,0.12594221,79860.0,79850.0,0.005]
[1731260108817,0.125227,79855.0,79850.0,0.005]
[1731260109021,0.12523,79853.0,79850.0,0.005]
[1731260109528,0.125228,79854.0,79850.0,0.005]
[1731260110080,0.37638621,79858.0,79850.0,0.005]
[1731260110081,0.12523,79853.0,79850.0,0.005]
[1731260110282,0.125233,79851.0,79850.0,0.005]
[1731260110485,0.12594221,79858.0,79850.0,0.005]
[1731260110486,0.12523,79853.0,79850.0,0.005]
[1731260111166,0.12594221,79858.0,79854.0,0.125227]
[1731260111373,0.25116521,79858.0,79852.0,0.12523]
[1731260111575,0.250447,79857.0,79851.0,0.005]
[1731260111781,0.12523,79853.0,79851.0,0.005]
[1731260112424,0.125231,79853.0,79851.0,0.005]
[1731260112817,0.125231,79852.0,79851.0,0.005]
[1731260113423,0.125229,79854.0,79851.0,0.005]
[1731260113836,0.12892894,79858.0,79851.0,0.005]
[1731260114047,0.125226,79856.0,79851.0,0.130232]
[1731260114216,0.37567,79857.0,79851.0,0.005]
[1731260114404,0.250447,79857.0,79851.0,0.005]
[1731260114606,0.125228,79854.0,79851.0,0.005]
[1731260114802,0.125231,79852.0,79851.0,0.0047]
[1731260115243,0.25045,79856.0,79851.0,0.0047]
[1731260115449,0.125231,79852.0,79851.0,0.0047]
[1731260116650,0.125229,79854.0,79851.0,0.0047]
[1731260116848,0.125229,79854.0,79852.0,0.0047]
[1731260117048,0.25117221,79853.0,79852.0,0.0047]
[1731260117289,0.250463,79853.0,79852.0,0.0047]
[1731260117721,0.125233,79851.0,79850.0,0.00638]
[1731260120781,0.125233,79851.0,79850.0,0.00168]
[1731260121333,0.102233,79851.0,79850.0,0.00168]
[1731260121941,0.00084,79858.0,79850.0,0.00168]
[1731260121942,0.251284,79858.0,79850.0,0.00168]
[1731260122313,0.125233,79851.0,79850.0,0.00168]
[1731260123160,0.37639021,79857.0,79850.0,0.00168]
[1731260123518,0.0520871,79858.0,79850.0,0.00168]
[1731260123743,0.17802931,79858.0,79852.0,0.12523]
[1731260123953,0.125226,79856.0,79850.0,0.00168]
[1731260124189,0.125227,79855.0,79850.0,0.00168]
[1731260124619,0.17802931,79858.0,79852.0,0.125231]
[1731260124796,0.30325231,79858.0,79852.0,0.125231]
[1731260125316,0.00084,79853.0,79852.0,0.125231]
[1731260125549,0.00084,79853.0,79852.0,0.37293681]
[1731260127207,0.00084,79853.0,79852.0,0.38293681]
[1731260127411,0.00084,79858.0,79857.0,0.211623]
[1731260127644,0.00084,79858.0,79857.0,0.267223]
[1731260127873,0.00084,79858.0,79857.0,0.41616521]
[1731260128077,0.00084,79858.0,79857.0,0.53187102]
[1731260129176,0.18776522,79870.0,79864.0,0.0097]
[1731260129406,0.18776522,79870.0,79864.0,0.51096002]
[1731260129870,0.00084,79886.0,79877.0,0.269292]
[1731260130138,0.00084,79886.0,79877.0,0.38499781]
[1731260130376,0.00084,79886.0,79882.0,0.134884]
[1731260130604,0.00084,79886.0,79882.0,0.220384]
[1731260130827,0.00084,79886.0,79882.0,0.215384]
[1731260131021,0.00084,79886.0,79882.0,0.0852]
[1731260131515,0.00084,79886.0,79882.0,0.210384]
[1731260131748,0.05124118,79886.0,79882.0,0.210384]
[1731260132389,0.02943623,79886.0,79885.0,0.129879]
[1731260132644,0.18776522,79889.0,79888.0,0.125175]
[1731260132869,0.18764689,79889.0,79886.0,0.129877]
[1731260133085,0.04976318,79890.0,79887.0,0.0047]
[1731260133519,0.250328,79895.0,79887.0,0.0047]
[1731260133737,0.125168,79893.0,79887.0,0.0047]
[1731260133944,0.250328,79895.0,79887.0,0.0047]
[1731260133945,0.125165,79894.0,79887.0,0.0047]
[1731260134148,0.125171,79891.0,79887.0,0.0047]
[1731260134364,0.125168,79893.0,79887.0,0.0047]
[1731260134587,0.125168,79893.0,79887.0,0.129876]
[1731260134801,0.04955492,79896.0,79889.0,0.125172]
[1731260135008,0.04955492,79896.0,79887.0,0.125176]
[1731260135253,0.250324,79897.0,79888.0,0.129874]
[1731260135254,0.125167,79894.0,79888.0,0.129874]
[1731260135459,0.125167,79894.0,79883.0,0.250364]
[1731260135460,0.250325,79896.0,79887.0,0.0047]
[1731260135674,0.125173,79889.0,79886.0,0.0047]
[1731260135884,0.125176,79887.0,79886.0,0.0047]
[1731260136108,0.250322,79897.0,79888.0,0.0047]
[1731260136311,0.125167,79893.0,79888.0,0.0047]
[1731260136558,0.250325,79896.0,79887.0,0.125176]
[1731260136778,0.125169,79892.0,79888.0,0.0047]
[1731260136993,0.250322,79897.0,79888.0,0.0047]
[1731260137229,0.12594221,79899.0,79888.0,0.0047]
[1731260137695,0.125173,79889.0,79888.0,0.00638]
[1731260137926,0.126013,79889.0,79888.0,0.00638]
[1731260138351,0.00084,79889.0,79888.0,0.00168]
[1731260138781,0.00084,79889.0,79888.0,0.00638]
[1731260139008,0.126013,79889.0,79888.0,0.00638]
[1731260139219,0.00084,79889.0,79888.0,0.131555]
[1731260139447,0.00084,79889.0,79888.0,0.00638]
[1731260139652,0.00084,79889.0,79888.0,0.131555]
[1731260140083,0.00084,79889.0,79888.0,0.00638]
[1731260140775,0.125169,79892.0,79888.0,0.00638]
[1731260141029,0.27925292,79893.0,79888.0,0.00638]
[1731260141221,0.125171,79891.0,79888.0,0.00638]
[1731260141350,0.27925292,79893.0,79888.0,0.00638]
[1731260141351,0.05107792,79893.0,79888.0,0.00638]
[1731260141550,0.12594221,79899.0,79888.0,0.00638]
[1731260141551,0.250337,79892.0,79888.0,0.00638]
[1731260141753,0.12594221,79899.0,79888.0,0.00638]
[1731260142200,0.125171,79891.0,79888.0,0.00168]
[1731260142491,0.17590267,79899.0,79888.0,0.00638]
[1731260142696,0.125173,79889.0,79888.0,0.00638]
[1731260143308,0.125173,79889.0,79888.0,0.00168]
[1731260143508,0.125173,79889.0,79888.0,0.00638]
[1731260143709,0.125173,79889.0,79888.0,0.00168]
[1731260143926,0.125173,79889.0,79888.0,0.00638]
[1731260144563,0.25111521,79889.0,79888.0,0.00638]
[1731260144778,0.250322,79897.0,79888.0,0.00638]
[1731260144990,0.125172,79890.0,79888.0,0.00638]
[1731260145216,0.125173,79889.0,79888.0,0.00168]
[1731260145647,0.125173,79889.0,79888.0,0.00638]
[1731260145869,0.125173,79889.0,79888.0,0.00168]
[1731260146081,0.125173,79889.0,79888.0,0.00638]
[1731260146288,0.250328,79895.0,79888.0,0.00168]
[1731260146500,0.250319,79898.0,79888.0,0.00638]
[1731260146501,0.125169,79892.0,79888.0,0.00638]
[1731260146706,0.37627621,79894.0,79888.0,0.00168]
[1731260146926,0.125173,79889.0,79888.0,0.00638]
[1731260147143,0.102173,79889.0,79888.0,0.00638]
[1731260147562,0.125168,79892.0,79888.0,0.00168]
[1731260147768,0.125173,79889.0,79888.0,0.00168]
[1731260147972,0.125173,79889.0,79888.0,0.00638]
[1731260148651,0.125171,79891.0,79888.0,0.00638]
[1731260148862,0.125173,79889.0,79888.0,0.00638]
[1731260149700,0.126013,79889.0,79888.0,0.00638]
[1731260150632,0.00084,79889.0,79888.0,0.00638]
[1731260151072,0.126013,79889.0,79888.0,0.00638]
[1731260151798,0.00084,79889.0,79888.0,0.00638]
[1731260152009,0.10378221,79893.0,79888.0,0.00638]
[1731260152225,0.125173,79889.0,79888.0,0.00638]
[1731260153504,0.125171,79891.0,79888.0,0.00638]
[1731260153707,0.125173,79890.0,79888.0,0.00638]
[1731260153915,0.15387828,79893.0,79888.0,0.00638]
[1731260154425,0.125171,79891.0,79888.0,0.00638]
[1731260154665,0.15387828,79893.0,79888.0,0.00638]
[1731260154844,0.125172,79890.0,79889.0,0.0047]
[1731260155088,0.125172,79890.0,79888.0,0.00638]
[1731260155292,0.125172,79890.0,79889.0,0.0047]
[1731260155778,0.125172,79890.0,79888.0,0.00638]
[1731260155988,0.125172,79890.0,79889.0,0.0047]
[1731260156403,0.125172,79890.0,79888.0,0.00168]
[1731260156404,0.125172,79890.0,79888.0,0.00638]
[1731260156606,0.125172,79890.0,79889.0,0.0047]
[1731260156841,0.125172,79890.0,79888.0,0.00638]
[1731260157015,0.15387828,79893.0,79888.0,0.00638]
[1731260157264,0.250343,79891.0,79888.0,0.00638]
[1731260157480,0.250343,79891.0,79888.0,0.00168]
[1731260157691,0.125173,79889.0,79888.0,0.00638]
[1731260158118,0.15387828,79893.0,79888.0,0.00638]
[1731260158319,0.12517,79892.0,79888.0,0.00638]
[1731260158569,0.15387828,79893.0,79888.0,0.00638]
[1731260158777,0.125171,79891.0,79889.0,0.00931159]
[1731260158998,0.125171,79891.0,79888.0,0.00638]
[1731260159226,0.125173,79890.0,79888.0,0.00638]
[1731260159477,0.125173,79890.0,79889.0,0.00931403]
[1731260159678,0.15387828,79893.0,79889.0,0.00931403]
[1731260159889,0.125172,79890.0,79888.0,0.00638]
[1731260160950,0.125173,79889.0,79888.0,0.00638]
[1731260161195,0.125173,79889.0,79888.0,0.00168]
[1731260161422,0.25111521,79889.0,79888.0,0.00638]
[1731260161654,0.25111521,79889.0,79888.0,0.00168]
[1731260161655,0.3291318,79889.0,79888.0,0.00168]
[1731260162331,0.3061318,79889.0,79888.0,0.00168]
[1731260162547,0.22811521,79889.0,79888.0,0.00168]
[1731260163610,0.101173,79889.0,79888.0,0.00168]
[1731260166014,0.10949884,79889.0,79888.0,0.00168]
[1731260167099,0.00832584,79889.0,79888.0,0.00168]
[1731260167336,0.00832584,79889.0,79888.0,0.260955]
[1731260167748,0.00084,79890.0,79889.0,0.129873]
[1731260171045,0.00084,79890.0,79889.0,0.212073]
[1731260172852,0.00084,79890.0,79889.0,0.213753]
[1731260177206,0.02877607,79893.0,79892.0,0.129868]
[1731260177450,0.18776522,79899.0,79898.0,0.129859]
[1731260177676,0.23922338,79899.0,79898.0,0.0047]
[1731260177901,0.23922338,79899.0,79889.0,0.08388]
[1731260177902,0.4808714,79899.0,79894.0,0.0047]
[1731260178134,0.125172,79890.0,79889.0,0.00168]
[1731260178349,0.55409247,79890.0,79889.0,0.00168]
[1731260179128,0.56243076,79890.0,79889.0,0.00168]
[1731260182143,0.56443076,79890.0,79889.0,0.00168]
[1731260182353,0.68251192,79890.0,79889.0,0.00168]
[1731260182584,0.56443076,79890.0,79889.0,0.00168]
[1731260183007,0.58743076,79890.0,79889.0,0.00168]
[1731260183228,0.62641624,79890.0,79889.0,0.00168]
[1731260183437,0.58743076,79890.0,79889.0,0.00168]
[1731260183882,2.08743076,79890.0,79889.0,0.00168]
[1731260184097,2.11385318,79890.0,79889.0,0.00168]
[1731260184821,2.23979539,79890.0,79889.0,0.00168]
[1731260185440,0.73979539,79890.0,79889.0,0.00168]
[1731260185664,0.61385318,79890.0,79889.0,0.00168]
[1731260186089,0.59085318,79890.0,79889.0,0.00168]
[1731260188462,0.4677004,79890.0,79889.0,0.00168]
[1731260189788,0.46555318,79890.0,79889.0,0.00168]
[1731260192260,0.36338118,79890.0,79889.0,0.00168]
[1731260192891,0.48855318,79890.0,79889.0,0.00168]
[1731260194600,0.26338118,79890.0,79889.0,0.00168]
[1731260194808,0.31087492,79890.0,79889.0,0.07858]
[1731260197315,0.28787492,79890.0,79889.0,0.07858]
[1731260200295,0.16270292,79890.0,79889.0,0.07858]
[1731260200864,0.28787492,79890.0,79889.0,0.07858]
[1731260201073,0.05976071,79890.0,79889.0,0.07858]
[1731260201379,0.05976071,79890.0,79889.0,0.203753]
[1731260202011,0.05976071,79890.0,79889.0,0.07858]
[1731260202196,0.18493271,79890.0,79889.0,0.07858]
[1731260203274,0.31087492,79890.0,79889.0,0.07858]
[1731260203479,0.38858449,79890.0,79889.0,0.00168]
[1731260205287,0.38696873,79890.0,79889.0,0.00168]
[1731260205496,0.37858449,79890.0,79889.0,0.00168]
[1731260206969,0.47858449,79890.0,79889.0,0.00168]
[1731260207117,0.45558449,79890.0,79889.0,0.10168]
[1731260209336,0.45642449,79890.0,79889.0,0.10168]
[1731260212145,0.43342449,79890.0,79889.0,0.10168]
[1731260212349,0.43342449,79890.0,79889.0,0.266608]
[1731260213399,0.30825249,79890.0,79889.0,0.266608]
[1731260213723,0.30825249,79890.0,79889.0,0.347708]
[1731260215050,0.00460071,79890.0,79889.0,0.477581]
[1731260215263,0.00460071,79890.0,79889.0,0.352408]
[1731260215568,0.00460071,79890.0,79889.0,0.477581]
[1731260216867,0.00460071,79890.0,79889.0,0.352408]
[1731260217000,0.00460071,79890.0,79889.0,0.477581]
[1731260217752,0.00460071,79890.0,79889.0,0.352408]
[1731260217938,0.00460071,79890.0,79889.0,0.477581]
[1731260219053,0.00084,79890.0,79889.0,0.525681]
[1731260220509,0.00084,79890.0,79889.0,0.530681]
[1731260222678,0.00187783,79900.0,79889.0,0.530681]
[1731260222679,0.00187783,79900.0,79899.0,0.129858]
[1731260222857,0.250279,79911.0,79905.0,0.0047]
[1731260223080,0.100709,79920.0,79900.0,2.99812217]
[1731260223081,0.05098637,79908.0,79907.0,0.1292]
[1731260223277,0.05098637,79908.0,79907.0,0.259045]
[1731260223480,0.18860522,79914.0,79907.0,0.259045]
[1731260223699,0.05135912,79914.0,79909.0,0.254982]
[1731260223834,0.05135912,79914.0,79907.0,0.1339]
[1731260224036,0.05135912,79914.0,79910.0,0.12514]
[1731260224247,0.05135912,79914.0,79907.0,0.1292]
[1731260224248,0.05135912,79914.0,79913.0,0.129836]
[1731260225099,0.05135912,79914.0,79913.0,0.0047]
[1731260225486,0.05135912,79914.0,79913.0,0.129836]
[1731260226472,0.05135912,79914.0,79913.0,0.124836]
[1731260226942,0.05135912,79914.0,79907.0,0.1292]
[1731260227156,0.05129912,79914.0,79907.0,0.1292]
[1731260227398,0.000709,79920.0,79907.0,0.1292]
[1731260227569,0.12594221,79919.0,79907.0,0.1292]
[1731260227776,0.12594221,79919.0,79912.0,0.125137]
[1731260228352,0.12594221,79919.0,79907.0,0.1292]
[1731260228556,0.12594221,79919.0,79913.0,0.125135]
[1731260228761,0.12594221,79919.0,79907.0,0.1292]
[1731260229299,0.12594221,79919.0,79912.0,0.125137]
[1731260229855,0.12594221,79919.0,79910.0,0.250281]
[1731260230068,0.12594221,79919.0,79912.0,0.125137]
[1731260230273,0.12594221,79919.0,79913.0,0.125135]
[1731260230478,0.000709,79920.0,79908.0,0.250287]
[1731260230696,0.000709,79920.0,79917.0,0.0757]
[1731260231110,0.000709,79920.0,79917.0,0.200829]
[1731260231316,0.000709,79920.0,79919.0,0.125126]
[1731260231527,0.000709,79920.0,79917.0,0.0757]
[1731260231528,0.00084,79919.0,79917.0,0.200829]
[1731260231778,0.00084,79919.0,79917.0,0.0757]
[1731260232086,0.00084,79919.0,79918.0,0.125128]
[1731260232881,0.00084,79919.0,79917.0,0.0757]
[1731260233092,0.00084,79919.0,79918.0,0.125128]
[1731260235024,0.00084,79919.0,79918.0,0.170128]
[1731260236083,0.00084,79919.0,79918.0,0.175128]
[1731260236488,0.248326,79951.0,79950.0,0.29186827]
[1731260236707,1.14285942,79951.0,79950.0,0.29186827]
[1731260236889,1.18907346,79951.0,79950.0,0.28663619]
[1731260237417,1.17107346,79951.0,79950.0,0.28663619]
[1731260237621,1.17082346,79951.0,79950.0,0.28663619]
[1731260237818,1.16582346,79951.0,79950.0,0.28663619]
[1731260238019,1.16532346,79951.0,79950.0,0.28663619]
[1731260238377,1.29126567,79951.0,79950.0,0.28663619]
[1731260239324,1.26813958,79951.0,79950.0,0.28663619]
[1731260239771,1.26313958,79951.0,79950.0,0.28663619]
[1731260240183,0.25268386,79951.0,79950.0,0.28663619]
[1731260240331,0.25181765,79951.0,79950.0,0.28663619]
[1731260240544,0.12674165,79951.0,79950.0,0.28663619]
[1731260241134,0.05121404,79951.0,79950.0,0.28663619]
[1731260241342,0.255118,79963.0,79950.0,0.28663619]
[1731260241343,0.250016,79995.0,79983.0,0.005]
[1731260241560,3.7761706,80000.0,79971.0,0.002]
[1731260241561,0.250007,79998.0,79992.0,0.005]
[1731260241784,3.7761706,80000.0,79993.0,0.01]
[1731260241785,1.5,79997.0,79993.0,0.01]
[1731260241984,1.5,79997.0,79991.0,0.1207]
[1731260241985,0.250727,79994.0,79991.0,0.1207]
[1731260242200,0.000708,79994.0,79991.0,0.0757]
[1731260242411,0.000648,79994.0,79991.0,0.0757]
[1731260242623,0.05082476,79998.0,79991.0,0.0657]
[1731260242831,0.256411,79999.0,79991.0,0.0657]
[1731260243047,0.006408,79999.0,79994.0,0.005]
[1731260243266,0.006348,79999.0,79994.0,0.005]
[1731260243667,0.125006,79997.0,79991.0,0.0657]
[1731260243901,0.006348,79999.0,79992.0,0.01]